bitfinex/quotes_BTCUSD_20241011
["timestamp","ask_amount","ask_price","bid_price","bid_amount"]
[1728658599211,0.001818,61858.0,61857.0,0.89386797]
[1728658602536,0.001818,61858.0,61857.0,0.64772232]
[1728658602746,0.001818,61858.0,61857.0,0.1991728]
[1728658602747,0.02583312,61858.0,61857.0,0.1991728]
[1728658602964,0.02583312,61858.0,61857.0,0.187663]
[1728658603394,0.02483312,61858.0,61857.0,0.45802938]
[1728658604052,0.03984272,61858.0,61857.0,0.44402938]
[1728658604300,0.03984272,61858.0,61857.0,0.61939909]
[1728658604503,0.03984272,61858.0,61857.0,0.60539909]
[1728658604716,0.03984272,61858.0,61857.0,0.44402938]
[1728658604928,0.04084272,61858.0,61857.0,0.46802938]
[1728658605358,0.03983331,61858.0,61857.0,0.44402938]
[1728658605568,0.03983331,61858.0,61857.0,0.45702938]
[1728658605758,0.04083331,61858.0,61857.0,0.45002938]
[1728658606171,0.03983331,61858.0,61857.0,0.161663]
[1728658606395,0.03983331,61858.0,61857.0,0.168663]
[1728658606602,0.04083331,61858.0,61857.0,0.168663]
[1728658607074,0.04083331,61858.0,61857.0,0.181663]
[1728658608195,0.03983331,61858.0,61857.0,0.174663]
[1728658608622,0.03983331,61858.0,61857.0,0.34526569]
[1728658608623,0.04083331,61858.0,61857.0,0.34526569]
[1728658608841,0.01682389,61858.0,61857.0,0.34203271]
[1728658609057,0.01582389,61858.0,61857.0,0.33603271]
[1728658609267,0.01682389,61858.0,61857.0,0.34203271]
[1728658610112,0.01682389,61858.0,61857.0,0.180663]
[1728658610350,0.01682389,61858.0,61857.0,0.18389581]
[1728658612393,0.01682389,61858.0,61857.0,0.45320511]
[1728658612630,0.001818,61858.0,61857.0,0.4499723]
[1728658612872,0.001818,61858.0,61857.0,0.61134201]
[1728658616584,0.001818,61858.0,61857.0,0.80213621]
[1728658618329,0.001818,61858.0,61857.0,0.6407665]
[1728658619699,0.01687995,61858.0,61857.0,0.180663]
[1728658619905,0.04097766,61858.0,61857.0,0.180663]
[1728658620382,0.05109022,61858.0,61857.0,0.180663]
[1728658620619,0.04097766,61858.0,61857.0,0.180663]
[1728658621102,0.11787766,61858.0,61857.0,0.180663]
[1728658622792,0.14309173,61858.0,61857.0,0.180663]
[1728658623020,0.11787766,61858.0,61857.0,0.180663]
[1728658623722,0.14309011,61858.0,61857.0,0.180663]
[1728658623945,0.11787766,61858.0,61857.0,0.180663]
[1728658624623,0.14309011,61858.0,61857.0,0.180663]
[1728658624878,0.11787766,61858.0,61857.0,0.180663]
[1728658625748,0.11804841,61858.0,61857.0,0.180663]
[1728658626226,0.11804841,61858.0,61857.0,0.019]
[1728658626446,0.11804841,61858.0,61857.0,0.180663]
[1728658627813,0.11804841,61858.0,61857.0,0.32005652]
[1728658628061,0.04114841,61858.0,61857.0,0.32005652]
[1728658628316,0.04114841,61858.0,61857.0,0.180663]
[1728658633278,0.04117204,61858.0,61857.0,0.180663]
[1728658636660,0.001818,61858.0,61857.0,0.180663]
[1728658636876,0.04116375,61858.0,61857.0,0.180663]
[1728658637987,0.04116375,61858.0,61857.0,0.019]
[1728658638206,0.04116375,61858.0,61857.0,0.180663]
[1728658640411,0.04114558,61858.0,61857.0,0.180663]
[1728658644062,0.001818,61858.0,61857.0,0.180663]
[1728658644342,0.04114511,61858.0,61857.0,0.180663]
[1728658647452,0.001818,61858.0,61857.0,0.180663]
[1728658647680,0.04117257,61858.0,61857.0,0.180663]
[1728658647930,0.04117697,61858.0,61857.0,0.180663]
[1728658648183,0.04117697,61858.0,61857.0,0.4230892]
[1728658649512,0.04117697,61858.0,61857.0,0.180663]
[1728658650416,0.04117697,61858.0,61857.0,0.019]
[1728658650626,0.37827684,61858.0,61857.0,0.019]
[1728658650864,0.37473697,61858.0,61857.0,0.019]
[1728658651317,0.3747432,61858.0,61857.0,0.019]
[1728658651985,0.38385823,61858.0,61857.0,0.013]
[1728658652199,0.22219823,61858.0,61853.0,0.2432442]
[1728658652422,0.2146841,61857.0,61853.0,0.2432442]
[1728658652659,0.04948023,61856.0,61853.0,0.2432442]
[1728658652880,0.0530201,61855.0,61853.0,0.2432442]
[1728658653105,0.04948023,61854.0,61853.0,0.2432442]
[1728658653766,0.04948023,61854.0,61853.0,0.4089172]
[1728658654000,0.04948023,61854.0,61853.0,0.4049172]
[1728658654484,0.04948023,61854.0,61853.0,0.162491]
[1728658655313,0.0746956,61854.0,61853.0,0.000818]
[1728658655549,0.0746956,61854.0,61853.0,0.008818]
[1728658655778,0.0746956,61854.0,61853.0,0.170491]
[1728658656253,0.21115123,61854.0,61853.0,0.008818]
[1728658656490,0.0530201,61854.0,61853.0,0.008818]
[1728658656738,0.04948023,61854.0,61853.0,0.008818]
[1728658656991,0.04948023,61854.0,61853.0,0.170491]
[1728658657237,0.04948023,61854.0,61853.0,0.18159131]
[1728658658734,0.06455403,61854.0,61853.0,0.01991831]
[1728658658737,0.06455403,61854.0,61853.0,0.18159131]
[1728658661232,0.06455403,61854.0,61844.0,0.05]
[1728658661233,0.161694,61845.0,61844.0,0.05]
[1728658661511,0.161694,61845.0,61829.0,0.12111171]
[1728658661512,0.161728,61832.0,61831.0,0.2424262]
[1728658661782,0.04943203,61832.0,61831.0,0.2424262]
[1728658662027,0.04941288,61832.0,61831.0,0.2424262]
[1728658662286,0.0392938,61832.0,61831.0,0.4041572]
[1728658662768,0.0392938,61832.0,61830.0,0.323467]
[1728658663012,0.5142172,61839.0,61831.0,0.2504262]
[1728658663013,0.0101178,61836.0,61831.0,0.2504262]
[1728658663271,0.03925395,61835.0,61834.0,0.161723]
[1728658665327,0.03925395,61835.0,61834.0,0.164723]
[1728658665328,0.01509767,61835.0,61834.0,0.164723]
[1728658665551,0.03924029,61835.0,61834.0,0.172723]
[1728658665781,0.04024029,61835.0,61834.0,0.172723]
[1728658668944,0.001,61835.0,61834.0,0.172723]
[1728658669161,0.0402149,61835.0,61834.0,0.172723]
[1728658670963,0.01608265,61835.0,61834.0,0.172723]
[1728658671184,0.04021304,61835.0,61834.0,0.172723]
[1728658671664,0.06141699,61835.0,61834.0,0.011]
[1728658671886,0.04021304,61835.0,61834.0,0.011]
[1728658672106,0.04021304,61835.0,61834.0,0.172723]
[1728658672547,0.04018829,61835.0,61834.0,0.172723]
[1728658672766,0.001,61835.0,61834.0,0.172723]
[1728658672987,0.04018781,61835.0,61834.0,0.172723]
[1728658674041,0.01607223,61835.0,61834.0,0.172723]
[1728658674464,0.01607223,61835.0,61834.0,0.173541]
[1728658679230,0.04020982,61835.0,61834.0,0.17677513]
[1728658679457,0.04020982,61835.0,61834.0,0.173541]
[1728658681284,0.04020982,61835.0,61834.0,0.011818]
[1728658681507,0.26559238,61835.0,61834.0,0.011818]
[1728658681976,0.21207088,61835.0,61834.0,0.011818]
[1728658682945,0.21107088,61835.0,61834.0,0.003818]
[1728658683264,0.21107088,61835.0,61834.0,0.002818]
[1728658683496,0.29381075,61835.0,61834.0,0.002818]
[1728658684775,0.28981075,61835.0,61834.0,0.002818]
[1728658684989,0.88186125,61835.0,61834.0,0.000818]
[1728658685201,0.87832138,61835.0,61834.0,0.000818]
[1728658685406,0.87532138,61835.0,61834.0,0.001818]
[1728658685617,0.87532138,61835.0,61834.0,0.000818]
[1728658685850,0.87932138,61835.0,61834.0,0.000818]
[1728658686059,0.89032138,61835.0,61834.0,0.001818]
[1728658686280,0.87532138,61835.0,61834.0,0.000818]
[1728658686729,0.90032138,61835.0,61834.0,0.002818]
[1728658686945,0.78757438,61835.0,61834.0,0.002818]
[1728658687385,0.62805438,61835.0,61829.0,0.0001]
[1728658687589,0.62805438,61835.0,61819.0,0.2424262]
[1728658687590,0.161759,61820.0,61819.0,0.2424262]
[1728658687797,0.21464975,61820.0,61819.0,0.2424262]
[1728658688707,0.161762,61819.0,61818.0,0.000818]
[1728658688918,0.16530187,61819.0,61818.0,0.000818]
[1728658689138,0.19952959,61819.0,61818.0,0.000818]
[1728658689358,0.21459575,61819.0,61818.0,0.000818]
[1728658690024,0.22159575,61819.0,61818.0,0.001818]
[1728658690861,0.47152548,61819.0,61818.0,0.001818]
[1728658691112,0.46798561,61819.0,61818.0,0.001818]
[1728658691319,0.39936518,61819.0,61818.0,0.001818]
[1728658692365,0.39932489,61819.0,61818.0,0.001818]
[1728658695799,0.39929627,61819.0,61818.0,0.001818]
[1728658697586,0.38729627,61819.0,61818.0,0.001818]
[1728658697799,0.39829627,61819.0,61818.0,0.001818]
[1728658698044,0.39129627,61819.0,61818.0,0.000818]
[1728658698453,0.39729627,61819.0,61818.0,0.001818]
[1728658699411,0.39727784,61819.0,61818.0,0.001818]
[1728658700109,0.58807204,61819.0,61818.0,0.001818]
[1728658701441,0.57707204,61819.0,61818.0,0.001818]
[1728658701657,0.58107204,61819.0,61818.0,0.000818]
[1728658701890,0.58607204,61819.0,61818.0,0.000818]
[1728658702131,0.57607204,61819.0,61818.0,0.000818]
[1728658702367,0.57107204,61819.0,61818.0,0.000818]
[1728658702624,0.015,61819.0,61818.0,0.000818]
[1728658702864,0.84952744,61819.0,61818.0,0.000818]
[1728658703116,0.84952744,61819.0,61805.0,0.2424262]
[1728658703117,0.161796,61806.0,61805.0,0.2424262]
[1728658703334,0.55810304,61806.0,61805.0,0.2424262]
[1728658703786,0.74889724,61806.0,61805.0,0.2424262]
[1728658704040,0.161814,61799.0,61798.0,0.2424262]
[1728658704282,0.40180749,61799.0,61798.0,0.2424262]
[1728658704711,0.23999349,61799.0,61791.0,0.2432452]
[1728658704902,0.161825,61795.0,61791.0,0.2432452]
[1728658705150,0.03907568,61794.0,61791.0,0.2432452]
[1728658705392,0.04261555,61793.0,61791.0,0.4050792]
[1728658705608,0.00353987,61795.0,61792.0,0.161833]
[1728658706068,0.03906474,61794.0,61792.0,0.161833]
[1728658706304,0.00453987,61795.0,61792.0,0.161833]
[1728658706305,0.04260461,61793.0,61792.0,0.161833]
[1728658706534,0.03906474,61793.0,61792.0,0.161833]
[1728658707700,0.161823,61796.0,61791.0,0.001819]
[1728658707926,0.001,61793.0,61792.0,0.161832]
[1728658708156,0.00353987,61795.0,61791.0,0.162653]
[1728658708375,0.001,61793.0,61792.0,0.003]
[1728658708564,0.001,61793.0,61792.0,0.164833]
[1728658708788,0.00353987,61795.0,61792.0,0.163833]
[1728658708994,0.001,61796.0,61793.0,0.161828]
[1728658709217,0.05284133,61795.0,61793.0,0.161828]
[1728658709852,0.04271719,61795.0,61793.0,0.161828]
[1728658710067,0.04271719,61795.0,61792.0,0.161832]
[1728658710307,0.04271719,61795.0,61791.0,0.324488]
[1728658710521,0.0150682,61794.0,61793.0,0.161829]
[1728658711184,0.00353987,61795.0,61791.0,0.324488]
[1728658711398,0.04933787,61794.0,61793.0,0.32366]
[1728658711626,0.04933787,61794.0,61793.0,0.16183]
[1728658711855,0.04933787,61794.0,61793.0,0.16283]
[1728658712072,0.05033787,61794.0,61793.0,0.16783]
[1728658712530,0.001,61794.0,61793.0,0.16783]
[1728658712749,0.04021871,61794.0,61793.0,0.16783]
[1728658713234,0.04021871,61794.0,61793.0,0.16683]
[1728658713917,0.03921871,61794.0,61792.0,0.323666]
[1728658714142,0.03921871,61793.0,61792.0,0.161833]
[1728658714370,0.04934258,61793.0,61792.0,0.161833]
[1728658715471,0.161833,61792.0,61791.0,0.000819]
[1728658715657,0.40550965,61792.0,61791.0,0.000819]
[1728658715921,0.40196978,61792.0,61791.0,0.000819]
[1728658717524,0.40196978,61792.0,61791.0,0.002819]
[1728658718212,0.40296978,61792.0,61791.0,0.009819]
[1728658719336,0.3536272,61792.0,61791.0,0.009819]
[1728658719574,0.40301486,61792.0,61791.0,0.011819]
[1728658720006,0.40301486,61792.0,61791.0,0.009819]
[1728658720219,0.40301486,61792.0,61791.0,0.011819]
[1728658720427,0.21222066,61792.0,61791.0,0.011819]
[1728658720682,0.21576053,61792.0,61791.0,0.011819]
[1728658722946,0.05392753,61792.0,61791.0,0.011819]
[1728658724271,0.05038766,61792.0,61791.0,0.011819]
[1728658724484,0.05392753,61792.0,61791.0,0.011819]
[1728658725343,0.05038766,61792.0,61791.0,0.011819]
[1728658725550,0.05392753,61792.0,61791.0,0.173654]
[1728658725765,0.05038766,61792.0,61791.0,0.173654]
[1728658726218,0.001,61792.0,61791.0,0.173654]
[1728658726701,0.05037114,61792.0,61791.0,0.173654]
[1728658727431,0.26614204,61792.0,61791.0,0.011819]
[1728658727638,0.10784891,61792.0,61791.0,0.011819]
[1728658727851,0.05037114,61792.0,61791.0,0.011819]
[1728658728034,0.05391101,61792.0,61791.0,0.011819]
[1728658728608,0.21574401,61792.0,61791.0,0.011819]
[1728658729241,0.05391101,61792.0,61791.0,0.011819]
[1728658729612,0.05037114,61792.0,61791.0,0.011819]
[1728658730048,0.05391101,61792.0,61791.0,0.011819]
[1728658730565,0.21574401,61792.0,61791.0,0.011819]
[1728658731212,0.05391101,61792.0,61791.0,0.011819]
[1728658732207,0.05037114,61792.0,61791.0,0.011819]
[1728658734115,0.05037114,61792.0,61791.0,0.32883172]
[1728658734545,0.04024638,61792.0,61791.0,0.30535144]
[1728658734740,0.03924638,61792.0,61791.0,0.29635144]
[1728658735087,0.04024638,61792.0,61791.0,0.31058778]
[1728658735296,0.03924638,61792.0,61791.0,0.46366074]
[1728658735513,0.03924638,61792.0,61791.0,0.46466074]
[1728658735724,0.04024638,61792.0,61791.0,0.60113128]
[1728658735986,0.04024638,61792.0,61791.0,0.60013128]
[1728658736213,0.01609476,61792.0,61791.0,0.60013128]
[1728658736422,0.01709476,61792.0,61791.0,0.58066074]
[1728658736866,0.01609476,61792.0,61791.0,0.57566074]
[1728658737110,0.2424262,61816.0,61813.0,0.161778]
[1728658737340,0.03431223,61815.0,61814.0,0.161775]
[1728658737560,0.03431223,61815.0,61814.0,0.0808896]
[1728658738015,0.03431223,61815.0,61811.0,0.161781]
[1728658738238,0.02419107,61814.0,61811.0,0.323565]
[1728658738497,0.00353987,61816.0,61813.0,0.161778]
[1728658738680,0.02517502,61815.0,61814.0,0.007]
[1728658738890,0.03429589,61815.0,61813.0,0.161778]
[1728658739096,0.02417502,61814.0,61813.0,0.161778]
[1728658739299,0.02417502,61814.0,61809.0,0.323575]
[1728658739510,0.02417502,61813.0,61812.0,0.161778]
[1728658740119,0.02417502,61813.0,61810.0,0.323569]
[1728658740494,0.001,61815.0,61813.0,0.003]
[1728658740741,0.02415915,61814.0,61813.0,0.003]
[1728658741717,0.001,61813.0,61811.0,0.161782]
[1728658741956,0.16531087,61816.0,61812.0,0.004]
[1728658741957,0.00353987,61816.0,61812.0,0.004]
[1728658742244,0.001,61814.0,61813.0,0.008]
[1728658742660,0.001,61814.0,61813.0,0.172778]
[1728658743284,0.163401,61818.0,61813.0,0.164778]
[1728658743285,0.161766,61818.0,61813.0,0.164778]
[1728658743763,0.001,61816.0,61813.0,0.164777]
[1728658743975,0.161767,61818.0,61813.0,0.164777]
[1728658744412,0.001,61814.0,61813.0,0.172777]
[1728658744628,0.161767,61818.0,61813.0,0.161777]
[1728658744879,0.162767,61818.0,61813.0,0.167777]
[1728658745117,0.001,61816.0,61813.0,0.006]
[1728658745341,0.161774,61815.0,61810.0,0.161785]
[1728658745551,0.161774,61815.0,61811.0,0.2424262]
[1728658745763,0.161774,61815.0,61813.0,0.003]
[1728658745970,0.001,61816.0,61813.0,0.003]
[1728658746193,0.161773,61815.0,61811.0,0.2424262]
[1728658746417,0.001,61816.0,61811.0,0.2424262]
[1728658746418,0.001,61816.0,61813.0,0.001]
[1728658746647,0.001,61816.0,61813.0,0.005]
[1728658746852,0.21011797,61817.0,61813.0,0.001]
[1728658747266,0.001,61816.0,61813.0,0.007]
[1728658747935,0.001,61816.0,61813.0,0.167778]
[1728658748172,0.161768,61817.0,61813.0,0.161778]
[1728658748378,0.16177,61816.0,61813.0,0.005]
[1728658748584,0.16177,61817.0,61813.0,0.166777]
[1728658749046,0.16177,61817.0,61813.0,0.167777]
[1728658749253,0.01506263,61816.0,61813.0,0.167777]
[1728658749459,0.01506263,61815.0,61813.0,0.005]
[1728658749663,0.01506263,61814.0,61809.0,0.323575]
[1728658749866,0.161771,61816.0,61812.0,0.161779]
[1728658749867,0.01506263,61813.0,61812.0,0.161779]
[1728658751235,0.01606263,61813.0,61812.0,0.009]
[1728658751453,0.01606263,61813.0,61812.0,0.17078]
[1728658751664,0.38916429,61813.0,61812.0,0.013]
[1728658752289,0.55847359,61813.0,61812.0,0.013]
[1728658752520,0.73420516,61813.0,61812.0,0.013]
[1728658752729,0.80673012,61813.0,61812.0,0.009]
[1728658752937,0.67013961,61813.0,61799.0,0.161812]
[1728658753175,0.161804,61804.0,61800.0,0.16181]
[1728658753415,0.03917186,61803.0,61801.0,0.161809]
[1728658753615,0.01506416,61802.0,61801.0,0.161809]
[1728658754044,0.01506416,61802.0,61801.0,0.3526032]
[1728658754251,0.04837651,61808.0,61807.0,0.161793]
[1728658754470,0.08756993,61808.0,61807.0,0.161793]
[1728658754675,0.03919342,61808.0,61807.0,0.161793]
[1728658755590,0.11371838,61808.0,61807.0,0.161793]
[1728658756011,0.07452496,61808.0,61807.0,0.161793]
[1728658756220,0.11372701,61808.0,61807.0,0.161793]
[1728658756637,0.11378117,61808.0,61807.0,0.161793]
[1728658757080,0.03920205,61808.0,61807.0,0.161793]
[1728658757331,0.03920205,61808.0,61807.0,0.166793]
[1728658758456,0.11177564,61808.0,61807.0,0.166793]
[1728658759348,0.03920205,61808.0,61807.0,0.166793]
[1728658760074,0.03920205,61808.0,61807.0,0.20753761]
[1728658760769,0.01507771,61808.0,61807.0,0.166793]
[1728658761239,0.03918327,61808.0,61807.0,0.166793]
[1728658761716,0.01507771,61808.0,61807.0,0.166793]
[1728658763209,0.03918471,61808.0,61807.0,0.166793]
[1728658765483,0.21731356,61808.0,61807.0,0.166793]
[1728658765713,0.11157068,61808.0,61807.0,0.166793]
[1728658765925,0.03918471,61808.0,61807.0,0.166793]
[1728658766837,0.11160424,61808.0,61807.0,0.166793]
[1728658767061,0.08747456,61808.0,61807.0,0.166793]
[1728658768718,0.03921827,61808.0,61807.0,0.166793]
[1728658770064,0.08747456,61808.0,61807.0,0.166793]
[1728658770806,0.03921827,61808.0,61807.0,0.167611]
[1728658771688,0.04934025,61808.0,61807.0,0.167611]
[1728658773475,0.04934025,61808.0,61807.0,0.005818]
[1728658773741,0.21113125,61808.0,61807.0,0.005818]
[1728658774236,0.19605002,61808.0,61807.0,0.005818]
[1728658774494,0.21113564,61808.0,61807.0,0.005818]
[1728658775251,0.04934464,61808.0,61807.0,0.005818]
[1728658775749,0.04934464,61808.0,61807.0,0.167611]
[1728658775989,0.04934464,61808.0,61807.0,0.005818]
[1728658776947,0.1433256,61808.0,61807.0,0.005818]
[1728658777197,0.30113564,61808.0,61807.0,0.005818]
[1728658779482,0.30713564,61808.0,61807.0,0.001818]
[1728658779727,0.30213564,61808.0,61807.0,0.000818]
[1728658779937,0.30113564,61808.0,61807.0,0.000818]
[1728658780133,0.30413564,61808.0,61807.0,0.00047758]
[1728658780346,0.30413564,61808.0,61807.0,0.00247758]
[1728658784819,0.27891228,61808.0,61807.0,0.00247758]
[1728658785002,0.3041114,61808.0,61807.0,0.00247758]
[1728658785204,0.30411374,61808.0,61807.0,0.00247758]
[1728658785839,0.32924049,61808.0,61807.0,0.00247758]
[1728658786295,0.30411374,61808.0,61807.0,0.00247758]
[1728658788871,0.30411374,61808.0,61807.0,0.00047758]
[1728658789149,0.30111374,61808.0,61807.0,0.00047758]
[1728658789366,0.30811374,61808.0,61807.0,0.00047758]
[1728658791895,0.30808633,61808.0,61807.0,0.00047758]
[1728658794638,0.30972233,61808.0,61807.0,0.00047758]
[1728658795389,0.30973725,61808.0,61807.0,0.00047758]
[1728658795871,0.94043495,61808.0,61807.0,0.00047758]
[1728658796132,1.06843495,61808.0,61807.0,0.00047758]
[1728658797099,0.334909,61801.0,61800.0,0.009]
[1728658797349,0.55352855,61801.0,61800.0,0.009]
[1728658798277,0.56052855,61801.0,61800.0,0.009]
[1728658799011,0.48272855,61801.0,61800.0,0.009]
[1728658799251,0.5078364,61801.0,61800.0,0.009]
[1728658799462,0.5058364,61801.0,61800.0,0.009]
[1728658799692,0.4988364,61801.0,61800.0,0.009]
[1728658799896,0.47872855,61801.0,61800.0,0.009]
[1728658800862,0.05431025,61801.0,61800.0,0.345912]
[1728658801594,0.05431025,61801.0,61800.0,0.250912]
[1728658802055,0.05431025,61801.0,61800.0,0.170812]
[1728658802275,0.04418691,61801.0,61800.0,0.177812]
[1728658802460,0.04518691,61801.0,61800.0,0.177812]
[1728658803258,0.04018691,61801.0,61800.0,0.177812]
[1728658803760,0.04518691,61801.0,61800.0,0.177812]
[1728658804025,0.04018691,61801.0,61800.0,0.177812]
[1728658804301,0.04018691,61801.0,61800.0,0.18104801]
[1728658804534,0.01606601,61801.0,61800.0,0.34118171]
[1728658804775,0.04017162,61801.0,61800.0,0.43608171]
[1728658805013,0.01606601,61801.0,61800.0,0.60539101]
[1728658805248,0.01606601,61801.0,61800.0,0.70539101]
[1728658805727,0.001,61801.0,61800.0,0.70539101]
[1728658805981,0.001,61801.0,61800.0,0.70620901]
[1728658806228,0.001636,61808.0,61807.0,0.166793]
[1728658806484,0.01670318,61808.0,61807.0,1.00142574]
[1728658806731,0.01670318,61808.0,61807.0,1.0001907]
[1728658806732,0.001636,61808.0,61807.0,1.0001907]
[1728658808648,0.001636,61808.0,61807.0,1.0141907]
[1728658808905,0.001636,61808.0,61807.0,1.0001907]
[1728658809233,0.001636,61808.0,61807.0,0.161793]
[1728658809470,0.001636,61808.0,61807.0,0.014]
[1728658809683,0.002636,61808.0,61807.0,0.021]
[1728658810119,0.001636,61808.0,61805.0,0.161797]
[1728658810285,0.001636,61808.0,61807.0,0.012]
[1728658811079,0.001636,61808.0,61807.0,0.008]
[1728658811299,0.001636,61808.0,61807.0,0.169793]
[1728658811501,0.001636,61808.0,61807.0,0.20426864]
[1728658811963,0.001636,61808.0,61807.0,0.31326864]
[1728658812212,0.001636,61808.0,61807.0,0.74957198]
[1728658812471,0.001636,61808.0,61807.0,0.75433668]
[1728658812700,0.001636,61808.0,61807.0,0.74633668]
[1728658812926,0.001636,61808.0,61807.0,0.55954248]
[1728658813153,0.001636,61808.0,61807.0,0.48334248]
[1728658813382,0.001636,61808.0,61807.0,0.47034248]
[1728658813609,0.002636,61808.0,61807.0,0.47534248]
[1728658814258,0.001636,61808.0,61807.0,0.47034248]
[1728658814677,0.001636,61808.0,61807.0,0.68013668]
[1728658814878,0.001636,61808.0,61807.0,0.77413668]
[1728658815080,0.001636,61808.0,61807.0,0.58334248]
[1728658815281,0.001636,61808.0,61807.0,0.76013668]
[1728658815487,0.001636,61808.0,61807.0,0.56934248]
[1728658815721,0.001636,61808.0,61807.0,0.57034248]
[1728658815916,0.001636,61808.0,61807.0,0.58134248]
[1728658816125,0.001636,61808.0,61807.0,0.261793]
[1728658816540,0.002636,61808.0,61807.0,0.286793]
[1728658816964,0.001636,61808.0,61807.0,0.275793]
[1728658817166,0.001636,61808.0,61807.0,0.284793]
[1728658817367,0.002636,61808.0,61807.0,0.284793]
[1728658817602,0.002636,61808.0,61807.0,0.67235912]
[1728658817884,0.002636,61808.0,61807.0,0.41593292]
[1728658818069,0.002636,61808.0,61807.0,0.65835912]
[1728658818280,0.002636,61808.0,61807.0,0.42593292]
[1728658818487,0.002636,61808.0,61807.0,0.83766842]
[1728658818869,0.002636,61808.0,61807.0,0.59524222]
[1728658819066,0.001636,61808.0,61807.0,0.58624222]
[1728658819517,0.002636,61808.0,61807.0,0.59124222]
[1728658822579,0.002636,61808.0,61807.0,1.02946262]
[1728658822750,0.002636,61808.0,61807.0,0.86873642]
[1728658822953,0.002636,61808.0,61807.0,0.96153642]
[1728658823152,0.002636,61808.0,61807.0,0.96353642]
[1728658823983,0.002636,61808.0,61807.0,0.98653642]
[1728658824203,0.001638,61813.0,61812.0,0.46168]
[1728658824445,0.001638,61813.0,61812.0,0.98315321]
[1728658824910,0.001638,61813.0,61812.0,0.98515321]
[1728658825340,0.001638,61813.0,61812.0,0.99915321]
[1728658826033,0.001638,61813.0,61812.0,0.98515321]
[1728658826251,0.001638,61813.0,61812.0,0.98315321]
[1728658826454,0.001638,61813.0,61812.0,0.99715321]
[1728658826674,0.002638,61813.0,61812.0,1.01115321]
[1728658827333,0.002638,61813.0,61812.0,1.01315321]
[1728658827556,0.002638,61813.0,61812.0,1.01115321]
[1728658827776,0.002638,61813.0,61812.0,1.01315321]
[1728658827997,0.002638,61813.0,61812.0,1.01115321]
[1728658828205,0.002638,61813.0,61812.0,1.01315321]
[1728658829043,0.002638,61813.0,61812.0,1.02793541]
[1728658830703,0.002638,61813.0,61812.0,0.5572715]
[1728658830866,0.002638,61813.0,61812.0,0.7480657]
[1728658832109,0.002638,61813.0,61812.0,0.7500657]
[1728658832541,0.002638,61813.0,61812.0,0.8476657]
[1728658833296,0.002638,61813.0,61812.0,0.8706657]
[1728658833526,0.002638,61813.0,61812.0,1.03203541]
[1728658834489,0.001636,61818.0,61817.0,0.268767]
[1728658834743,0.001636,61818.0,61817.0,0.71230485]
[1728658834953,0.001636,61818.0,61817.0,0.7090705]
[1728658835158,0.001636,61818.0,61817.0,0.86951862]
[1728658835579,0.001636,61818.0,61817.0,0.89251862]
[1728658835770,0.002636,61818.0,61817.0,0.90551862]
[1728658835983,0.002636,61818.0,61817.0,1.11031282]
[1728658836219,0.002636,61818.0,61817.0,1.20421282]
[1728658836430,0.001636,61818.0,61817.0,1.19121282]
[1728658836849,0.002636,61818.0,61817.0,1.20521282]
[1728658837068,0.002636,61818.0,61817.0,1.01441862]
[1728658837300,0.002636,61818.0,61817.0,0.79862442]
[1728658837533,0.002636,61818.0,61817.0,0.50552442]
[1728658837744,0.002636,61818.0,61817.0,0.51052442]
[1728658837956,0.001636,61818.0,61817.0,0.51052442]
[1728658838187,0.001636,61818.0,61817.0,0.49652442]
[1728658838400,0.002636,61818.0,61817.0,0.52452442]
[1728658838810,0.001636,61818.0,61817.0,0.59652442]
[1728658839024,0.001636,61818.0,61817.0,0.85195062]
[1728658839233,0.002636,61818.0,61817.0,0.85895062]
[1728658839502,0.002636,61818.0,61817.0,0.61652442]
[1728658839977,0.002636,61818.0,61817.0,0.85895062]
[1728658840185,0.002636,61818.0,61817.0,0.69682442]
[1728658840569,0.001636,61818.0,61817.0,0.67682442]
[1728658840936,0.001636,61818.0,61817.0,0.69282442]
[1728658841140,0.001636,61818.0,61817.0,1.11204482]
[1728658841342,0.002636,61818.0,61817.0,0.90661862]
[1728658841564,0.002636,61818.0,61817.0,0.92061862]
[1728658841770,0.002636,61818.0,61817.0,0.72982442]
[1728658841971,0.001636,61818.0,61817.0,0.90661862]
[1728658842181,0.002636,61818.0,61817.0,0.92061862]
[1728658842390,0.002636,61818.0,61817.0,0.90661862]
[1728658842840,0.001636,61829.0,61828.0,0.266739]
[1728658843040,0.001636,61829.0,61828.0,0.72164811]
[1728658843184,0.001636,61829.0,61828.0,0.7184141]
[1728658844600,0.001636,61829.0,61828.0,0.7324141]
[1728658844734,0.002636,61829.0,61828.0,0.7454141]
[1728658845393,0.002636,61829.0,61828.0,0.5546199]
[1728658847891,0.002636,61829.0,61828.0,0.288739]
[1728658848099,0.10840206,61829.0,61828.0,0.188739]
[1728658848355,0.13250641,61829.0,61828.0,0.188739]
[1728658848563,0.093336,61829.0,61828.0,0.188739]
[1728658848767,0.13151257,61829.0,61828.0,0.161739]
[1728658848905,0.13151257,61829.0,61828.0,0.164739]
[1728658849244,0.13151257,61829.0,61828.0,0.173739]
[1728658849588,0.13151257,61829.0,61828.0,0.4161652]
[1728658850318,0.04081257,61829.0,61828.0,0.56845625]
[1728658850531,0.01670391,61829.0,61828.0,0.33203005]
[1728658850777,0.01770391,61829.0,61828.0,0.34303005]
[1728658850987,0.002636,61829.0,61828.0,0.34303005]
[1728658851428,0.001636,61829.0,61828.0,0.49533935]
[1728658851632,0.002636,61829.0,61828.0,0.51033935]
[1728658851792,0.002636,61829.0,61828.0,0.52233935]
[1728658852034,0.001636,61829.0,61828.0,0.51233935]
[1728658852243,0.001636,61829.0,61828.0,0.75476555]
[1728658852482,0.001636,61829.0,61828.0,0.51433935]
[1728658853052,0.001636,61829.0,61828.0,0.51233935]
[1728658853397,0.001636,61829.0,61828.0,0.50033935]
[1728658853869,0.001636,61829.0,61828.0,0.51433935]
[1728658854066,0.002636,61829.0,61828.0,0.50633935]
[1728658854299,0.002636,61829.0,61828.0,0.52033935]
[1728658854501,0.001636,61829.0,61828.0,0.51433935]
[1728658854824,0.002636,61829.0,61828.0,0.5432001]
[1728658855241,0.002636,61829.0,61828.0,0.5292001]